bitfinex-derivatives/quotes_BTCF0:USTF0_20250822
["timestamp","ask_amount","ask_price","bid_price","bid_amount"]
[1755827411356,2.55192923,112960.0,112950.0,0.07107165]
[1755827412255,2.55272923,112960.0,112950.0,0.04762165]
[1755827412459,2.55272923,112960.0,112920.0,0.02345]
[1755827412460,3.60094159,112960.0,112920.0,0.02345]
[1755827412648,1.05960824,112930.0,112920.0,0.02345]
[1755827413352,1.05960824,112930.0,112920.0,0.05567]
[1755827413553,1.05960824,112930.0,112920.0,0.08837]
[1755827414058,1.05960824,112930.0,112920.0,0.05567]
[1755827414450,1.05960824,112930.0,112910.0,0.05567]
[1755827414754,0.81428,112920.0,112910.0,0.05567]
[1755827414947,1.51008824,112920.0,112910.0,0.05567]
[1755827415757,1.50808824,112920.0,112910.0,0.05667]
[1755827415961,1.51687392,112920.0,112910.0,0.05667]
[1755827416161,1.50808824,112920.0,112910.0,0.08937]
[1755827416356,1.50808824,112920.0,112910.0,0.11916]
[1755827416765,0.69880824,112920.0,112910.0,0.11916]
[1755827420461,0.34940412,112920.0,112910.0,0.39844412]
[1755827420963,0.69880824,112920.0,112910.0,0.39844412]
[1755827421163,0.69880824,112920.0,112910.0,0.47044412]
[1755827421368,0.69880824,112920.0,112910.0,0.12104]
[1755827421566,0.69880824,112920.0,112910.0,0.47044412]
[1755827422159,0.69880824,112920.0,112910.0,0.12104]
[1755827422661,0.69880824,112920.0,112910.0,0.47044412]
[1755827425166,0.3608,112930.0,112910.0,0.47044412]
[1755827425167,0.3608,112930.0,112910.0,0.39844412]
[1755827425371,1.70020523,112940.0,112920.0,0.11875]
[1755827425568,1.69124412,112940.0,112920.0,0.46815412]
[1755827425867,0.34940412,112930.0,112920.0,0.82895412]
[1755827427068,0.35040412,112930.0,112920.0,0.82895412]
[1755827428268,0.35040412,112930.0,112920.0,0.47955]
[1755827428269,0.35068149,112930.0,112920.0,0.47955]
[1755827428663,0.002,112930.0,112920.0,0.82923149]
[1755827428868,0.35168149,112930.0,112920.0,0.47955]
[1755827432473,0.35168149,112930.0,112920.0,0.52704371]
[1755827441474,0.002,112930.0,112920.0,0.52704371]
[1755827441784,0.35168149,112930.0,112920.0,0.16624371]
[1755827442278,0.35168149,112930.0,112920.0,0.52704371]
[1755827445185,0.35168149,112930.0,112920.0,0.47955]
[1755827445588,0.002,112930.0,112920.0,0.47955]
[1755827445885,0.35168149,112930.0,112920.0,0.47955]
[1755827448385,0.35169444,112930.0,112920.0,0.82924444]
[1755827449486,0.002,112930.0,112920.0,0.82924444]
[1755827449686,0.35169444,112930.0,112920.0,0.82924444]
[1755827449882,0.002,112930.0,112920.0,0.82924444]
[1755827450081,0.35169444,112930.0,112920.0,0.82924444]
[1755827450286,0.35169444,112930.0,112920.0,0.89274359]
[1755827450889,0.002,112930.0,112920.0,0.89274359]
[1755827451088,0.35169444,112930.0,112920.0,0.89274359]
[1755827453089,0.002,112930.0,112920.0,0.89274359]
[1755827453289,0.35169444,112930.0,112920.0,0.89274359]
[1755827454290,0.35169444,112930.0,112920.0,1.70710359]
[1755827454690,0.35169444,112930.0,112920.0,0.89274359]
[1755827455086,0.35169444,112930.0,112920.0,1.70706359]
[1755827455286,0.35169444,112930.0,112920.0,1.69116956]
[1755827455482,0.02062076,112930.0,112920.0,1.64356444]
[1755827455686,0.3703152,112930.0,112920.0,1.64356444]
[1755827456397,0.37031517,112930.0,112920.0,1.64356444]
[1755827456695,0.35169444,112930.0,112920.0,1.64356444]
[1755827457196,0.002,112930.0,112920.0,1.64356444]
[1755827457397,0.35169444,112930.0,112920.0,1.64356444]
[1755827458600,0.35169444,112930.0,112920.0,1.29387]
[1755827458800,0.35169444,112930.0,112920.0,1.64356444]
[1755827459786,0.35069444,112930.0,112920.0,1.64356444]
[1755827459991,0.001,112930.0,112920.0,1.64356444]
[1755827460187,0.34969444,112930.0,112920.0,0.82924444]
[1755827460391,1.06018888,112930.0,112920.0,0.0843]
[1755827460699,1.07836326,112930.0,112920.0,0.13192531]
[1755827460899,1.07836326,112930.0,112920.0,0.16408531]
[1755827461204,1.89268326,112930.0,112920.0,0.13192531]
[1755827461402,1.89268326,112930.0,112920.0,0.16408531]
[1755827462101,1.89268326,112930.0,112920.0,0.13192531]
[1755827462295,1.89268326,112930.0,112920.0,0.16408531]
[1755827463398,1.89268326,112930.0,112920.0,0.11759531]
[1755827463600,1.89348326,112930.0,112920.0,0.07084531]
[1755827463791,1.89348326,112930.0,112920.0,0.02322]
[1755827464199,1.89448326,112930.0,112920.0,0.02322]
[1755827464399,1.89548326,112930.0,112920.0,0.02322]
[1755827464598,1.89468326,112930.0,112920.0,0.02322]
[1755827465200,1.89548326,112930.0,112920.0,0.07084531]
[1755827465894,1.89748326,112930.0,112920.0,0.07084531]
[1755827466096,2.2471777,112930.0,112920.0,0.04762531]
[1755827466399,2.2471777,112930.0,112910.0,0.07268832]
[1755827466605,1.40988332,112920.0,112910.0,0.02506301]
[1755827466804,1.4280577,112920.0,112910.0,0.00013301]
[1755827468399,1.4290577,112920.0,112910.0,0.00013301]
[1755827469203,1.4300577,112920.0,112910.0,0.00013301]
[1755827469805,1.6121377,112920.0,112910.0,0.00013301]
[1755827470406,1.26197864,112920.0,112910.0,0.00013301]
[1755827470701,1.26397864,112920.0,112910.0,0.00013301]
[1755827471406,1.26497864,112920.0,112910.0,0.00013301]
[1755827474308,1.26497864,112920.0,112910.0,0.02506301]
[1755827474508,1.26497864,112920.0,112910.0,0.05784301]
[1755827474509,2.07937864,112920.0,112910.0,0.05784301]
[1755827474809,2.07937864,112920.0,112910.0,0.08726301]
[1755827475110,2.07937864,112920.0,112910.0,0.07295301]
[1755827475409,2.07937864,112920.0,112910.0,0.10511301]
[1755827475609,2.07937864,112920.0,112910.0,0.07295301]
[1755827476614,2.07937864,112920.0,112910.0,0.05784301]
[1755827477907,2.06120426,112920.0,112910.0,0.05784301]
[1755827479611,1.24680426,112920.0,112910.0,0.05784301]
[1755827479819,2.06120426,112920.0,112910.0,0.05784301]
[1755827480116,2.06120426,112920.0,112910.0,0.09111301]
[1755827480614,2.06120426,112920.0,112910.0,0.12181301]
[1755827481002,2.06120426,112920.0,112910.0,0.07365301]
[1755827482309,2.05920426,112920.0,112910.0,0.07365301]
[1755827482515,2.05920426,112920.0,112910.0,0.12181301]
[1755827483113,2.05920426,112920.0,112910.0,0.07365301]
[1755827483614,2.05620426,112920.0,112910.0,0.07365301]
[1755827483816,2.05720426,112920.0,112910.0,0.05784301]
[1755827484217,2.07518444,112920.0,112910.0,0.05784301]
[1755827484517,2.07618444,112920.0,112910.0,0.05784301]
[1755827484915,2.07618444,112920.0,112910.0,0.09111301]
[1755827485117,2.07618444,112920.0,112910.0,0.02506301]
[1755827485118,2.05820426,112920.0,112910.0,0.02506301]
[1755827485421,2.07618654,112920.0,112910.0,0.02506301]
[1755827485817,2.07618654,112920.0,112910.0,0.00013301]
[1755827487318,2.42614867,112920.0,112900.0,0.02452]
[1755827487517,1.06072426,112910.0,112900.0,0.02452]
[1755827488514,0.71076213,112910.0,112900.0,0.02452]
[1755827488705,1.06172426,112910.0,112900.0,0.02452]
[1755827488910,1.07972159,112910.0,112900.0,0.02452]
[1755827490218,1.08072159,112910.0,112900.0,0.02452]
[1755827491013,1.31224159,112910.0,112900.0,0.02452]
[1755827491716,1.31324159,112910.0,112900.0,0.02452]
[1755827492918,1.31324159,112910.0,112900.0,0.04559]
[1755827494522,2.12764159,112910.0,112900.0,0.08872]
[1755827495109,1.77767946,112910.0,112900.0,0.08872]
[1755827495923,1.77767946,112910.0,112900.0,0.05545]
[1755827497429,1.77767946,112910.0,112900.0,0.11942]
[1755827498421,1.77767946,112910.0,112900.0,0.08615]
[1755827499023,1.77767946,112910.0,112900.0,0.11942]
[1755827500423,1.77767946,112910.0,112900.0,0.07126]
[1755827502325,2.12765419,112910.0,112900.0,0.10453]
[1755827503323,1.31325419,112910.0,112900.0,0.08615]
[1755827503528,1.31325419,112910.0,112900.0,0.11942]
[1755827503828,2.12761419,112910.0,112900.0,0.11942]
[1755827505324,1.77764576,112910.0,112900.0,0.12022]
[1755827505525,2.12761419,112910.0,112900.0,0.16784531]
[1755827505729,2.10961686,112910.0,112900.0,0.16784531]
[1755827506423,1.7595361,112910.0,112900.0,0.16784531]
[1755827506924,1.77755873,112910.0,112900.0,0.16784531]
[1755827507929,1.77755873,112910.0,112900.0,0.16704531]
[1755827508731,1.54703873,112910.0,112900.0,0.16704531]
[1755827509322,1.5290161,112910.0,112900.0,0.16704531]
[1755827509930,1.54702497,112910.0,112900.0,0.16704531]
[1755827510133,1.5290161,112910.0,112900.0,0.16704531]
[1755827511434,1.54702384,112910.0,112900.0,0.16704531]
[1755827512238,1.5290161,112910.0,112900.0,0.16704531]
[1755827518136,1.5290161,112910.0,112900.0,0.13377531]
[1755827518334,1.5290161,112910.0,112900.0,0.11888531]
[1755827518540,1.8788722,112910.0,112900.0,0.04762531]
[1755827518740,1.89710069,112910.0,112890.0,0.07032531]
[1755827518940,1.0605122,112900.0,112890.0,0.07032531]
[1755827520738,1.13473908,112900.0,112890.0,0.07032531]
[1755827522042,1.14369753,112900.0,112890.0,0.07032531]
[1755827522545,1.16192898,112900.0,112890.0,0.0227]
[1755827522740,1.16192898,112900.0,112880.0,0.09758996]
[1755827522947,1.8746722,112890.0,112880.0,0.08823996]
[1755827523140,1.89290578,112890.0,112880.0,0.04061465]
[1755827524432,1.89290578,112890.0,112880.0,0.01791465]
[1755827525040,1.89290578,112890.0,112870.0,0.07032531]
[1755827525234,0.7106561,112880.0,112870.0,0.09248531]
[1755827525640,0.7106561,112880.0,112870.0,0.07032531]
[1755827525846,0.7106561,112880.0,112870.0,0.09248531]
[1755827526244,0.7106561,112880.0,112870.0,0.09348531]
[1755827526446,0.7106561,112880.0,112870.0,0.10283531]
[1755827526846,0.7106561,112880.0,112870.0,0.10383531]
[1755827527047,0.7106561,112880.0,112870.0,0.13816531]
[1755827527252,0.7106561,112880.0,112870.0,0.10383531]
[1755827528654,0.7106561,112880.0,112870.0,0.11954531]
[1755827528844,0.7106561,112880.0,112870.0,0.16808531]
[1755827529250,0.7106561,112880.0,112870.0,0.12046]
[1755827529455,0.7106561,112880.0,112870.0,0.16808531]
[1755827529762,0.7106561,112880.0,112870.0,0.15387531]
[1755827530265,0.7106561,112880.0,112870.0,0.10625]
[1755827530455,0.7106561,112880.0,112870.0,0.10383531]
[1755827530763,0.7106561,112880.0,112870.0,0.0247]
[1755827530956,0.7106561,112880.0,112870.0,0.07232531]
[1755827531357,0.7106561,112880.0,112870.0,0.0247]
[1755827533061,0.8667361,112880.0,112870.0,0.0247]
[1755827533562,1.2165922,112880.0,112870.0,0.002]
[1755827534169,1.23479723,112880.0,112870.0,0.002]
[1755827534365,1.2165922,112880.0,112870.0,0.002]
[1755827534671,1.23479143,112880.0,112870.0,0.002]
[1755827534969,1.23479143,112880.0,112860.0,0.0227]
[1755827535263,1.8747922,112870.0,112860.0,0.0227]
[1755827535668,1.8747922,112870.0,112860.0,0.04486]
[1755827535862,2.1177922,112870.0,112860.0,0.04486]
[1755827536467,2.1177922,112870.0,112860.0,0.05621]
[1755827536663,2.1177922,112870.0,112860.0,0.05921]
[1755827538366,2.1177922,112870.0,112860.0,0.08942]
[1755827538560,2.1177922,112870.0,112860.0,0.12095]
[1755827538869,2.1177922,112870.0,112860.0,0.11995]
[1755827539770,1.7679361,112870.0,112860.0,0.11995]
[1755827540272,2.1177922,112870.0,112860.0,0.11995]
[1755827542767,2.1177922,112870.0,112860.0,0.08842]
[1755827542964,2.1177922,112870.0,112860.0,0.11995]
[1755827545666,0.243,112870.0,112860.0,0.11995]
[1755827545973,1.4077361,112870.0,112860.0,0.11995]
[1755827547074,0.5928561,112870.0,112860.0,0.13890541]
[1755827547262,0.3498561,112870.0,112860.0,0.13890541]
[1755827548166,0.3498561,112870.0,112860.0,0.18653072]
[1755827549776,1.17828,112880.0,112870.0,0.11804]
[1755827549968,1.5281361,112880.0,112870.0,0.11804]
[1755827550167,0.7106561,112880.0,112870.0,0.11804]
[1755827550372,1.5280561,112880.0,112870.0,0.11804]
[1755827550676,1.1672561,112880.0,112870.0,0.11804]
[1755827551264,1.1672561,112880.0,112870.0,0.11904]
[1755827552276,1.1672561,112880.0,112870.0,0.16666531]
[1755827553878,1.1672561,112880.0,112870.0,0.11904]
[1755827554378,1.1672561,112880.0,112870.0,0.16666531]
[1755827555771,0.8174,112880.0,112870.0,0.16666531]
[1755827555971,1.1672561,112880.0,112870.0,0.16666531]
[1755827558374,1.5280561,112880.0,112870.0,0.16666531]
[1755827558568,1.1672561,112880.0,112870.0,0.16666531]
[1755827561780,1.1685761,112880.0,112870.0,0.16666531]
[1755827563385,0.81872,112880.0,112870.0,0.16666531]
[1755827563683,1.1685761,112880.0,112870.0,0.16666531]
[1755827564885,1.5293761,112880.0,112870.0,0.16666531]
[1755827565086,1.1685761,112880.0,112870.0,0.16666531]
[1755827567187,1.1684561,112880.0,112870.0,0.16666531]
[1755827569684,0.36093301,112890.0,112870.0,0.16666531]
[1755827569891,0.72954904,112890.0,112880.0,0.11748]
[1755827570187,1.52906911,112890.0,112880.0,0.16510531]
[1755827570392,0.35004349,112890.0,112880.0,0.51501579]
[1755827570588,1.17740349,112890.0,112880.0,0.5239409]
[1755827571392,1.17840349,112890.0,112880.0,0.5239409]
[1755827571583,0.35104349,112890.0,112880.0,0.5239409]
[1755827571781,0.35104349,112890.0,112880.0,0.47631559]
[1755827571782,0.35204349,112890.0,112880.0,0.47631559]
[1755827572280,0.35203622,112890.0,112880.0,0.12640511]
[1755827572479,0.00213301,112890.0,112880.0,0.48720511]
[1755827572683,0.00213301,112890.0,112880.0,0.83710832]
[1755827573088,0.00213301,112890.0,112880.0,0.90060747]
[1755827573695,0.00113301,112890.0,112880.0,0.90160747]
[1755827574095,0.00113301,112890.0,112880.0,0.55170426]
[1755827574290,0.00013301,112890.0,112880.0,0.55170426]
[1755827575196,0.00013301,112890.0,112880.0,0.48820511]
[1755827575594,0.35003622,112890.0,112880.0,0.50635964]
[1755827575786,0.00013301,112890.0,112880.0,0.50635964]
[1755827576094,0.35003622,112890.0,112880.0,0.50635964]
[1755827578399,0.35003622,112890.0,112880.0,0.56985879]
[1755827579297,0.35003622,112890.0,112880.0,0.50635964]
[1755827580088,0.35003622,112890.0,112880.0,0.56985879]
[1755827580493,0.00013301,112890.0,112880.0,0.56985879]
[1755827580798,0.35003622,112890.0,112880.0,0.56985879]
[1755827581394,0.35003622,112890.0,112880.0,0.50635964]
[1755827581699,0.00013301,112890.0,112880.0,0.50635964]
[1755827581902,0.35003622,112890.0,112880.0,1.33319964]
[1755827582095,0.35003622,112890.0,112880.0,1.39669879]
[1755827584496,0.00013301,112890.0,112880.0,1.68310285]
[1755827584694,1.30756,112910.0,112900.0,0.11748]
[1755827584997,0.83126321,112910.0,112900.0,0.13571995]
[1755827585201,0.84975768,112910.0,112900.0,0.13571995]
[1755827585406,0.49985447,112910.0,112900.0,0.13571995]
[1755827585590,0.84789768,112910.0,112900.0,0.13571995]
[1755827585993,0.84889768,112910.0,112900.0,0.13571995]
[1755827586897,0.85089768,112910.0,112900.0,0.13571995]
[1755827587399,0.50099447,112910.0,112900.0,0.13571995]
[1755827587604,0.85089768,112910.0,112900.0,0.13571995]
[1755827588790,0.85089768,112910.0,112900.0,0.04113995]
[1755827588995,0.85089768,112910.0,112880.0,0.52992803]
[1755827589197,0.3608,112900.0,112880.0,0.52992803]
[1755827589401,0.34990321,112890.0,112880.0,0.48247803]
[1755827589604,0.34990321,112890.0,112880.0,0.50537803]
[1755827590102,0.34990321,112890.0,112880.0,0.55282803]
[1755827590603,0.34990321,112890.0,112880.0,0.55382803]
[1755827593609,1.3131,112910.0,112890.0,0.08385]
[1755827593808,0.34990321,112900.0,112890.0,0.09458]
[1755827594314,0.34990321,112900.0,112890.0,0.11748]
[1755827595203,0.34990321,112900.0,112890.0,0.16494839]
[1755827595707,0.35090321,112900.0,112890.0,0.16494839]
[1755827596600,0.35190321,112900.0,112890.0,0.16494839]
[1755827596909,0.71270321,112900.0,112890.0,0.16494839]
[1755827598208,0.35190321,112900.0,112890.0,0.16494839]
[1755827598408,0.35190321,112900.0,112890.0,0.11748]
[1755827599613,0.002,112900.0,112890.0,0.11748]
[1755827599806,0.35190321,112900.0,112890.0,0.18097915]
[1755827600310,0.002,112900.0,112890.0,0.18097915]
[1755827600614,0.36057415,112900.0,112890.0,0.18097915]
[1755827601011,0.01067094,112900.0,112890.0,0.18097915]
[1755827601213,0.36057415,112900.0,112890.0,0.18097915]
[1755827601413,0.01067094,112900.0,112890.0,0.18097915]
[1755827601611,0.72137415,112900.0,112890.0,0.13352915]
[1755827601915,1.07127736,112900.0,112890.0,0.0229]
[1755827602109,0.3628,112900.0,112890.0,0.0701]
[1755827602316,0.002,112900.0,112890.0,0.18002915]
[1755827602516,0.35190321,112900.0,112890.0,0.18002915]
[1755827603007,0.002,112900.0,112890.0,0.18002915]
[1755827603204,0.35190321,112900.0,112890.0,0.18002915]
[1755827603408,0.002,112900.0,112890.0,0.18002915]
[1755827603616,0.35190321,112900.0,112890.0,0.18002915]
[1755827604011,0.002,112900.0,112890.0,0.52993236]
[1755827605318,0.002,112900.0,112890.0,0.46643321]
[1755827606007,0.35190321,112900.0,112890.0,0.11653]
[1755827606315,0.002,112900.0,112890.0,0.11653]
[1755827606513,0.35190321,112900.0,112890.0,0.11653]
[1755827607306,0.002,112900.0,112890.0,0.11653]
[1755827607511,0.35190321,112900.0,112890.0,0.11653]
[1755827613223,0.71270321,112900.0,112890.0,0.11653]
[1755827613724,0.35190321,112900.0,112890.0,0.11653]
[1755827616233,0.002,112900.0,112890.0,0.11653]
[1755827616426,0.35190321,112900.0,112890.0,0.11653]
[1755827616627,0.71270321,112900.0,112890.0,0.11653]
[1755827616926,0.35190321,112900.0,112890.0,0.11653]
[1755827620831,0.002,112900.0,112890.0,0.11653]
[1755827621032,0.002,112900.0,112890.0,0.46643321]
[1755827621534,0.35190321,112900.0,112890.0,0.46643321]
[1755827622036,0.002,112900.0,112890.0,0.46643321]
[1755827623636,0.35190321,112900.0,112890.0,0.46643321]
[1755827624128,0.002,112900.0,112890.0,0.11653]
[1755827624326,0.35190321,112900.0,112890.0,0.46643321]
[1755827625629,0.35190321,112900.0,112890.0,0.11653]
[1755827626135,0.002,112900.0,112890.0,0.11653]
[1755827626333,0.35190321,112900.0,112890.0,0.11653]
[1755827628240,0.35190321,112900.0,112890.0,0.18002915]
[1755827630838,0.002,112900.0,112890.0,0.18002915]
[1755827631240,0.35190321,112900.0,112890.0,0.18002915]
[1755827635343,0.37004248,112900.0,112890.0,0.16404198]
[1755827636545,0.35190321,112900.0,112890.0,0.16404198]
[1755827638947,0.37004299,112900.0,112890.0,0.16404198]
[1755827640346,0.35190321,112900.0,112890.0,0.16404198]
[1755827640645,0.34990321,112900.0,112890.0,0.16404198]
[1755827640847,0.34990321,112900.0,112890.0,0.16504198]
[1755827641251,0.4795,112910.0,112890.0,0.16504198]
[1755827641451,0.34990321,112900.0,112890.0,0.16504198]
[1755827642351,0.69976324,112900.0,112890.0,0.5149236]
[1755827643747,0.69976324,112900.0,112890.0,0.5139236]
[1755827643951,0.69976324,112900.0,112890.0,0.5149236]
[1755827645252,0.69976324,112900.0,112890.0,0.53091077]
[1755827647251,1.06056324,112900.0,112890.0,0.08739915]
[1755827647451,1.06056324,112900.0,112890.0,0.0239]
[1755827647649,1.06056324,112900.0,112890.0,0.16940915]
[1755827647852,1.06056324,112900.0,112890.0,0.18304915]
[1755827650454,1.06056324,112900.0,112890.0,0.11955]
[1755827652355,0.3608,112900.0,112890.0,0.11955]
[1755827652556,1.06056324,112900.0,112890.0,0.11955]
[1755827656248,0.69976324,112900.0,112890.0,0.11955]
[1755827659259,1.06056324,112900.0,112890.0,0.11955]
[1755827660361,0.3608,112900.0,112890.0,0.11955]
[1755827660559,1.06056324,112900.0,112890.0,0.11955]
[1755827661861,0.69976324,112900.0,112890.0,0.11955]
[1755827662061,0.69976324,112900.0,112890.0,0.53063077]
[1755827664861,0.69976324,112900.0,112890.0,0.18074915]
[1755827665163,0.69976324,112900.0,112890.0,0.53063077]
[1755827665463,0.69976324,112900.0,112890.0,0.11725]
[1755827666669,1.31634,112910.0,112890.0,0.11725]
[1755827666963,1.33472284,112910.0,112900.0,0.07234103]
[1755827667860,2.03448608,112910.0,112900.0,0.07234103]
[1755827668363,1.33472284,112910.0,112900.0,0.09385103]
[1755827668665,2.03548608,112910.0,112900.0,0.07234103]
[1755827670166,2.03648608,112910.0,112900.0,0.07234103]
[1755827674369,1.33672284,112910.0,112900.0,0.12612103]
[1755827674571,1.68660446,112910.0,112900.0,0.13566103]
[1755827674769,2.03648608,112910.0,112900.0,0.16651103]
[1755827675274,2.03648608,112910.0,112900.0,0.11901]
[1755827677379,2.03648608,112910.0,112900.0,0.08674]
[1755827677565,2.03648608,112910.0,112900.0,0.11901]
[1755827677767,2.03671271,112910.0,112900.0,0.11901]
[1755827679675,1.69331109,112910.0,112900.0,0.11901]
[1755827679976,1.69331109,112910.0,112900.0,0.46889162]
[1755827680276,1.69331109,112910.0,112900.0,0.11901]
[1755827680679,0.84999109,112910.0,112900.0,0.11901]
[1755827683380,0.84999109,112910.0,112900.0,0.02484]
[1755827683579,1.19987271,112910.0,112900.0,0.02484]
[1755827683783,0.84999109,112910.0,112900.0,0.02484]
[1755827684383,0.84999109,112910.0,112900.0,0.04635]
[1755827684577,0.84999109,112910.0,112900.0,0.05589]
[1755827684778,1.19987271,112910.0,112900.0,0.05589]
[1755827685484,0.84999109,112910.0,112900.0,0.10339103]
[1755827685685,1.19987271,112910.0,112900.0,0.10339103]
[1755827686384,0.84999109,112910.0,112900.0,0.10339103]
[1755827687286,1.19987271,112910.0,112900.0,0.10339103]
[1755827688188,1.19987271,112910.0,112900.0,0.13685103]
[1755827688687,1.19987271,112910.0,112900.0,0.16654103]
[1755827689384,0.84999109,112910.0,112900.0,0.16654103]
[1755827689887,1.19987271,112910.0,112900.0,0.16654103]
[1755827690281,0.84999109,112910.0,112900.0,0.16654103]
[1755827690585,1.19987271,112910.0,112900.0,0.08188103]
[1755827692185,0.50010947,112910.0,112900.0,0.08188103]
[1755827692374,1.19987271,112910.0,112900.0,0.08188103]
[1755827694985,1.19987271,112910.0,112900.0,0.10496103]
[1755827698882,2.03779271,112910.0,112900.0,0.10496103]
[1755827704391,2.03756142,112910.0,112900.0,0.10496103]
[1755827704693,2.03756142,112910.0,112900.0,0.16811103]
[1755827705293,1.33779818,112910.0,112900.0,0.16811103]
[1755827705486,1.6876798,112910.0,112900.0,0.16811103]
[1755827705986,0.8497598,112910.0,112900.0,0.16811103]
[1755827706183,0.49987818,112910.0,112900.0,0.86787427]
[1755827706394,0.83138162,112910.0,112900.0,0.51799265]
[1755827707190,0.83138162,112910.0,112900.0,0.16811103]
[1755827707392,0.83138162,112910.0,112900.0,0.51799265]
[1755827709494,0.4815,112910.0,112900.0,0.51799265]
[1755827709692,0.83138162,112910.0,112900.0,0.51799265]
[1755827710493,0.4815,112910.0,112900.0,0.51799265]
[1755827710793,0.83138162,112910.0,112900.0,0.51799265]
[1755827710986,0.4815,112910.0,112900.0,0.51799265]
[1755827711188,0.83138162,112910.0,112900.0,0.51799265]
[1755827711497,0.4815,112910.0,112900.0,0.51799265]
[1755827711794,0.83138162,112910.0,112900.0,0.51799265]
[1755827712597,0.4815,112910.0,112900.0,0.51799265]
[1755827712994,0.83138162,112910.0,112900.0,0.86787427]
[1755827713292,0.83138162,112910.0,112900.0,0.87661981]
[1755827713497,0.4815,112910.0,112900.0,0.52673819]
[1755827713699,0.83138162,112910.0,112900.0,0.52673819]
[1755827713997,0.4815,112910.0,112900.0,0.87661981]
[1755827714294,0.1207,112910.0,112900.0,1.25341793]
[1755827714483,0.47058162,112910.0,112900.0,1.25341793]
[1755827715297,0.1207,112910.0,112900.0,1.25341793]
[1755827716900,0.1207,112910.0,112900.0,1.18991878]
[1755827717992,0.1207,112910.0,112900.0,1.25341793]
[1755827718192,0.1207,112910.0,112900.0,1.18991878]
[1755827718694,0.1207,112910.0,112900.0,1.25341793]
[1755827725286,0.1207,112910.0,112900.0,1.23729193]
[1755827726488,0.1207,112910.0,112900.0,0.53752869]
[1755827726697,0.1207,112910.0,112900.0,1.23729193]
[1755827727297,0.1207,112910.0,112900.0,0.53752869]
[1755827727490,0.1207,112910.0,112900.0,1.23729193]
[1755827727685,0.1207,112910.0,112900.0,0.53752869]
[1755827727890,0.1207,112910.0,112900.0,1.23729193]
[1755827735299,0.1207,112910.0,112900.0,1.18991878]
[1755827735908,0.1207,112910.0,112900.0,0.49015554]
[1755827736106,0.1207,112910.0,112900.0,1.18991878]
[1755827736406,0.1207,112910.0,112900.0,1.25341793]
[1755827737106,0.1207,112910.0,112900.0,1.18991878]
[1755827737407,0.1207,112910.0,112900.0,1.25341793]
[1755827738808,0.16136,112920.0,112900.0,1.25341793]
[1755827738809,0.85671162,112930.0,112920.0,0.12037]
[1755827739006,0.70488453,112930.0,112920.0,0.12037]
[1755827739207,0.70488453,112930.0,112920.0,0.51768257]
[1755827739708,0.71384799,112930.0,112920.0,0.51768257]
[1755827740210,0.70488453,112930.0,112920.0,0.51768257]
[1755827740509,0.70688453,112930.0,112920.0,0.51768257]
[1755827741698,0.70988453,112930.0,112920.0,0.51768257]
[1755827742710,0.70908453,112930.0,112920.0,0.51768257]
[1755827745409,0.35920291,112930.0,112920.0,0.51768257]
[1755827745617,0.70908453,112930.0,112920.0,0.51768257]
[1755827747507,0.02306291,112930.0,112920.0,0.86756419]
[1755827747713,0.005,112930.0,112920.0,0.86756419]
[1755827747912,0.005,112930.0,112920.0,1.18093324]
[1755827752219,0.005,112930.0,112920.0,1.22828122]
[1755827752518,0.34673162,112940.0,112920.0,1.22828122]
[1755827752816,0.34653162,112940.0,112930.0,1.25384162]
[1755827753112,0.34988162,112940.0,112930.0,1.30116162]
[1755827753512,0.36954167,112950.0,112940.0,0.11904]
[1755827753716,0.7252542,112950.0,112940.0,0.11904]
[1755827755221,0.72525156,112950.0,112940.0,0.11904]
[1755827755920,0.72825156,112950.0,112940.0,0.11904]
[1755827756311,0.73125156,112950.0,112940.0,0.11904]
[1755827758421,0.73125156,112950.0,112940.0,0.08536]
[1755827759120,1.08113318,112950.0,112940.0,0.08536]
[1755827759422,1.08113318,112950.0,112940.0,0.04926]
[1755827759615,1.08113318,112950.0,112940.0,0.07147]
[1755827760317,1.08193318,112950.0,112940.0,0.02415]
[1755827760525,1.4318148,112950.0,112930.0,0.02415]
[1755827760721,2.24136486,112940.0,112920.0,0.09330798]
[1755827761020,0.69976324,112930.0,112920.0,0.10356798]
[1755827761221,1.06056324,112930.0,112920.0,0.05622]
[1755827761619,1.06056324,112930.0,112920.0,0.02415]
[1755827762325,1.0787925,112930.0,112910.0,0.36487232]
[1755827762620,0.69976324,112920.0,112910.0,0.36487232]
[1755827762923,1.06056324,112920.0,112910.0,0.33973434]
[1755827763129,1.06056324,112920.0,112910.0,0.07413434]
[1755827764221,2.24220486,112920.0,112910.0,0.02415]
[1755827764421,2.2604334,112920.0,112910.0,0.02415]
[1755827764625,1.91055178,112920.0,112910.0,0.02415]
[1755827765228,1.21078854,112920.0,112910.0,0.02415]
[1755827765421,1.91055178,112920.0,112910.0,0.02415]
[1755827765826,1.91155178,112920.0,112910.0,0.02415]
[1755827766315,1.91151894,112920.0,112910.0,0.02415]
[1755827766520,1.91151894,112920.0,112900.0,0.07011]
[1755827766720,0.7106652,112910.0,112900.0,0.07011]
[1755827767322,0.7106652,112910.0,112900.0,0.05622]
[1755827767716,0.7106652,112910.0,112900.0,0.04636]
[1755827768523,0.7106652,112910.0,112900.0,0.02415]
[1755827768723,0.71964256,112910.0,112900.0,0.02415]
[1755827768918,0.71964256,112910.0,112890.0,0.07011]
[1755827769125,1.5410652,112900.0,112890.0,0.02415]
[1755827769524,1.5400652,112900.0,112890.0,0.02415]
[1755827770227,1.5400652,112900.0,112890.0,0.02615]
[1755827770421,1.5400652,112900.0,112890.0,0.04836]
[1755827770619,1.5400652,112900.0,112890.0,0.04736]
[1755827770825,1.5400652,112900.0,112890.0,0.05722]
[1755827773532,1.60923774,112900.0,112890.0,0.05722]
[1755827775135,1.60923774,112900.0,112890.0,0.02515]
[1755827775334,1.60923774,112900.0,112890.0,0.04736]
[1755827775635,1.60923774,112900.0,112890.0,0.05722]
[1755827775837,1.25937254,112900.0,112890.0,0.12004]
[1755827776135,0.41903774,112900.0,112890.0,0.12004]
[1755827776434,0.77983774,112900.0,112890.0,0.12004]
[1755827777632,0.77983774,112900.0,112890.0,0.48084]
[1755827777633,0.41903774,112900.0,112890.0,0.48084]
[1755827778638,0.41903774,112900.0,112890.0,0.12004]
[1755827781741,1.5391452,112910.0,112890.0,0.8307052]
[1755827781943,1.5391452,112910.0,112900.0,0.12114]
[1755827782135,0.7106652,112910.0,112900.0,0.12114]
[1755827783240,0.3628,112910.0,112900.0,0.4710052]
[1755827783638,0.3638,112910.0,112900.0,0.4710052]
[1755827784543,0.3638,112910.0,112900.0,0.12114]
[1755827784943,0.3638,112910.0,112900.0,0.4710052]